bitfinex/quotes_BTCUSD_20241202
["timestamp","ask_amount","ask_price","bid_price","bid_amount"]
[1733171057639,0.3574394,96268.0,96267.0,0.002]
[1733171058391,0.5074394,96268.0,96267.0,0.002]
[1733171058617,0.51263654,96268.0,96267.0,0.002]
[1733171058896,0.51913338,96268.0,96267.0,0.002]
[1733171059133,0.50363654,96268.0,96267.0,0.001]
[1733171059395,0.15,96267.0,96242.0,0.0017306]
[1733171059649,0.15,96265.0,96243.0,0.10284521]
[1733171059880,0.207788,96252.0,96243.0,0.10284521]
[1733171060641,0.207786,96253.0,96243.0,0.31065021]
[1733171060886,0.207786,96253.0,96243.0,0.10284521]
[1733171061120,0.207786,96253.0,96243.0,0.10302089]
[1733171061358,0.207786,96253.0,96243.0,0.10402089]
[1733171061359,0.216787,96252.0,96243.0,0.10402089]
[1733171062522,0.01689617,96252.0,96244.0,0.207805]
[1733171062771,0.01689617,96252.0,96243.0,0.10302089]
[1733171062772,0.20779,96251.0,96243.0,0.10302089]
[1733171062972,0.009,96252.0,96243.0,0.10402089]
[1733171063188,0.2078,96247.0,96243.0,0.10575069]
[1733171063396,0.285192,96250.0,96243.0,0.10475069]
[1733171063811,0.285192,96250.0,96244.0,0.001]
[1733171064030,0.00553843,96245.0,96244.0,0.001]
[1733171064239,0.00553843,96245.0,96243.0,0.00190548]
[1733171064240,0.207805,96244.0,96243.0,0.00190548]
[1733171064665,0.207805,96244.0,96243.0,0.00290548]
[1733171065631,0.207805,96244.0,96243.0,0.00190548]
[1733171065832,0.207805,96244.0,96243.0,0.00290548]
[1733171066093,0.2307752,96244.0,96243.0,0.00190548]
[1733171066461,0.2397752,96244.0,96243.0,0.00290548]
[1733171066899,0.2477752,96244.0,96243.0,0.00390548]
[1733171068133,0.3260752,96244.0,96243.0,0.00390548]
[1733171068337,0.4760752,96244.0,96243.0,0.00390548]
[1733171068537,0.5253752,96244.0,96243.0,0.00390548]
[1733171069064,0.5253752,96244.0,96243.0,0.00290548]
[1733171069065,0.5173752,96244.0,96243.0,0.00290548]
[1733171069265,0.5173752,96244.0,96243.0,0.00190548]
[1733171069266,0.5083752,96244.0,96243.0,0.00190548]
[1733171069467,0.5173752,96244.0,96243.0,0.00290548]
[1733171070080,0.5173752,96244.0,96243.0,0.00390548]
[1733171070081,0.5263752,96244.0,96243.0,0.00390548]
[1733171071644,0.62922041,96244.0,96243.0,0.00390548]
[1733171072074,0.63327401,96244.0,96243.0,0.00390548]
[1733171074470,0.62922041,96244.0,96243.0,0.00390548]
[1733171079206,0.5263752,96244.0,96243.0,0.00390548]
[1733171080952,0.5296244,96244.0,96243.0,0.00390548]
[1733171083374,0.63246961,96244.0,96243.0,0.00390548]
[1733171083584,0.63766846,96244.0,96243.0,0.00390548]
[1733171084221,0.83766846,96244.0,96243.0,0.00390548]
[1733171084433,0.81966846,96244.0,96243.0,0.00190548]
[1733171084883,0.82666846,96244.0,96243.0,0.00190548]
[1733171085517,0.62666846,96244.0,96243.0,0.00190548]
[1733171085723,0.63566846,96244.0,96243.0,0.00190548]
[1733171087725,0.5243752,96244.0,96243.0,0.00190548]
[1733171087934,0.5295739,96244.0,96243.0,0.00190548]
[1733171088154,0.53282308,96244.0,96243.0,0.00190548]
[1733171088360,0.48352308,96244.0,96243.0,0.00190548]
[1733171091187,0.48352303,96244.0,96243.0,0.00190548]
[1733171091424,0.49002136,96244.0,96243.0,0.00190548]
[1733171091661,0.4900215,96244.0,96243.0,0.00190548]
[1733171099252,0.83896671,96244.0,96243.0,0.00190548]
[1733171099469,0.20553843,96243.0,96242.0,0.00110572]
[1733171099680,0.47534675,96243.0,96242.0,0.00110572]
[1733171099905,0.47350592,96243.0,96242.0,0.00110572]
[1733171100768,0.48050592,96243.0,96242.0,0.00110572]
[1733171100977,0.48950592,96243.0,96242.0,0.00110572]
[1733171102746,0.48950592,96243.0,96234.0,0.0017306]
[1733171102747,0.89046243,96235.0,96234.0,3.2e-07]
[1733171102971,1.00500478,96235.0,96234.0,3.2e-07]
[1733171103189,1.00825394,96235.0,96234.0,3.2e-07]
[1733171103620,1.00825756,96235.0,96234.0,3.2e-07]
[1733171104071,1.01725756,96235.0,96234.0,3.2e-07]
[1733171104282,1.01725756,96235.0,96216.0,0.001731]
[1733171104283,0.44189943,96218.0,96216.0,0.001731]
[1733171104488,0.55124461,96218.0,96216.0,0.001731]
[1733171104696,0.55969456,96218.0,96216.0,0.001731]
[1733171105136,0.61182589,96218.0,96216.0,0.001731]
[1733171105378,0.55553843,96217.0,96216.0,0.001731]
[1733171105600,0.74233359,96217.0,96216.0,0.001731]
[1733171105838,0.00553843,96198.0,96194.0,0.001731]
[1733171106053,0.4441424,96198.0,96194.0,0.001731]
[1733171106268,0.55023759,96198.0,96194.0,0.001731]
[1733171106477,0.55673917,96198.0,96194.0,0.001731]
[1733171107183,0.5569983,96198.0,96194.0,0.001731]
[1733171107824,0.5739918,96198.0,96194.0,0.001731]
[1733171108518,0.5749918,96198.0,96197.0,0.002731]
[1733171108740,0.5749918,96198.0,96197.0,0.003731]
[1733171108970,0.5759918,96198.0,96197.0,0.003731]
[1733171109183,0.5749918,96198.0,96197.0,0.002731]
[1733171109399,0.67882326,96198.0,96194.0,0.000731]
[1733171109613,0.21350343,96170.0,96169.0,0.0017308]
[1733171110054,0.21534426,96170.0,96169.0,0.0017308]
[1733171110283,0.21554477,96170.0,96169.0,0.0017308]
[1733171111992,0.24890966,96170.0,96169.0,0.0017308]
[1733171112200,0.24706883,96170.0,96169.0,0.0017308]
[1733171112412,0.39706883,96170.0,96169.0,0.0017308]
[1733171113101,0.39686832,96170.0,96169.0,0.0017308]
[1733171113304,0.5137615,96170.0,96169.0,0.0017308]
[1733171113723,0.51701325,96170.0,96169.0,0.0017308]
[1733171114149,0.49616842,96170.0,96169.0,0.0017308]
[1733171114648,0.50191667,96170.0,96169.0,0.0017308]
[1733171114885,0.50171353,96170.0,96169.0,0.0017308]
[1733171115143,0.49271353,96170.0,96169.0,0.0017308]
[1733171115380,0.50171353,96170.0,96169.0,0.0017308]
[1733171117457,0.60454499,96170.0,96169.0,0.0017308]
[1733171117674,0.50171353,96170.0,96169.0,0.0017308]
[1733171119215,0.50904022,96170.0,96169.0,0.0017308]
[1733171120135,0.52288505,96170.0,96169.0,0.0017308]
[1733171120599,0.50904031,96170.0,96169.0,0.0017308]
[1733171123360,0.50578837,96170.0,96169.0,0.0017308]
[1733171123566,0.50578837,96170.0,96164.0,0.0017308]
[1733171123567,0.357975,96165.0,96164.0,0.0017308]
[1733171123985,0.36205363,96165.0,96164.0,0.0017308]
[1733171124440,0.36226591,96165.0,96164.0,0.0017308]
[1733171124655,0.36551798,96165.0,96164.0,0.0017308]
[1733171124868,0.36551798,96165.0,96164.0,0.00231807]
[1733171125068,0.37351798,96165.0,96164.0,0.00231807]
[1733171125501,0.60357792,96165.0,96164.0,0.00231807]
[1733171125739,0.85027792,96165.0,96164.0,0.00231807]
[1733171125948,0.91542081,96165.0,96164.0,0.00231807]
[1733171126406,0.93332147,96165.0,96164.0,0.00231807]
[1733171126655,0.92681696,96165.0,96164.0,0.00231807]
[1733171126873,0.91361382,96165.0,96164.0,0.00231807]
[1733171127089,0.92532193,96165.0,96164.0,0.00231807]
[1733171127338,0.93432193,96165.0,96164.0,0.00231807]
[1733171127568,0.91632193,96165.0,96164.0,0.00231807]
[1733171127995,0.91732193,96165.0,96164.0,0.00231807]
[1733171128208,0.91732193,96165.0,96160.0,0.0017308]
[1733171128209,0.20553843,96161.0,96160.0,0.0017308]
[1733171128457,0.20553843,96161.0,96160.0,0.00190708]
[1733171128458,0.68964361,96161.0,96160.0,0.00190708]
[1733171128675,0.44645243,96147.0,96126.0,0.0792]
[1733171128909,0.44645243,96147.0,96146.0,0.00180901]
[1733171128910,0.60425349,96147.0,96146.0,0.00180901]
[1733171129121,0.65454627,96147.0,96146.0,0.00180901]
[1733171129345,0.85454627,96147.0,96146.0,0.00180901]
[1733171129572,0.8580495,96147.0,96146.0,0.00180901]
[1733171130246,0.85454627,96147.0,96146.0,0.00180901]
[1733171130932,0.85554627,96147.0,96146.0,0.00180901]
[1733171131145,0.85554627,96147.0,96113.0,0.0455]
[1733171131146,0.36357243,96138.0,96113.0,0.0455]
[1733171131368,0.481378,96138.0,96113.0,0.0455]
[1733171131608,0.48785278,96138.0,96113.0,0.0455]
[1733171132484,0.49685278,96138.0,96113.0,0.0455]
[1733171134017,0.49685278,96138.0,96101.0,0.0479]
[1733171134018,0.00553843,96104.0,96101.0,0.0479]
[1733171134233,0.21364543,96104.0,96101.0,0.0479]
[1733171134449,0.21689878,96104.0,96101.0,0.0479]
[1733171135291,0.21689878,96104.0,96103.0,0.00252886]
[1733171135972,0.23460266,96104.0,96103.0,0.00252886]
[1733171136179,0.24260266,96104.0,96103.0,0.00252886]
[1733171136609,0.008,96104.0,96103.0,0.00252886]
[1733171136821,0.008,96104.0,96103.0,0.12312886]
[1733171137329,0.01,96104.0,96103.0,0.12312886]
[1733171139492,0.01553843,96104.0,96103.0,0.12312886]
[1733171142582,0.01553843,96104.0,96103.0,0.11812886]
[1733171143241,0.01,96104.0,96103.0,0.11812886]
[1733171144191,0.41622,96103.0,96100.0,0.0017306]
[1733171144405,0.01,96104.0,96100.0,0.00179173]
[1733171144854,0.01,96104.0,96103.0,0.0017314]
[1733171145096,0.008,96104.0,96103.0,0.0017314]
[1733171145311,0.00553843,96106.0,96103.0,0.0798314]
[1733171145544,0.00553843,96106.0,96104.0,0.0481]
[1733171146018,0.21364143,96106.0,96104.0,0.0481]
[1733171146926,0.22164143,96106.0,96103.0,0.0017314]
[1733171147151,0.42974543,96106.0,96103.0,0.0017314]
[1733171147365,0.208107,96104.0,96103.0,0.0017314]
[1733171147851,0.22164143,96106.0,96103.0,0.0017314]
[1733171148059,0.00520536,96105.0,96103.0,0.0017314]
[1733171148271,0.21664143,96106.0,96103.0,0.0017314]
[1733171148479,0.008,96104.0,96103.0,0.0017314]
[1733171148690,0.00325333,96104.0,96103.0,0.0017314]
[1733171149559,0.00845864,96104.0,96103.0,0.0017314]
[1733171149789,0.01645864,96104.0,96103.0,0.0017314]
[1733171150010,0.01325333,96104.0,96103.0,0.23271831]
[1733171150254,0.01325333,96104.0,96103.0,0.23087661]
[1733171150470,0.01325311,96104.0,96103.0,0.23087661]
[1733171150677,0.01,96104.0,96103.0,0.23087661]
[1733171151317,0.01325308,96104.0,96103.0,0.23087661]
[1733171151597,0.01,96104.0,96103.0,0.23087661]
[1733171151818,0.01,96104.0,96103.0,0.1280314]
[1733171152261,0.01,96104.0,96103.0,0.23087661]
[1733171154462,0.01,96104.0,96103.0,0.45752198]
[1733171154901,0.01,96104.0,96103.0,0.958465]
[1733171155121,0.01,96104.0,96103.0,0.45752198]
[1733171155361,0.008,96104.0,96103.0,0.80752198]
[1733171155572,0.00325233,96133.0,96132.0,0.1242]
[1733171155786,0.00325233,96133.0,96132.0,0.22888631]
[1733171156003,0.00553843,96157.0,96132.0,0.22704521]
[1733171156219,0.2,96183.0,96132.0,0.22704521]
[1733171156220,0.00845481,96156.0,96152.0,0.208002]
[1733171156473,0.00325185,96155.0,96152.0,0.208002]
[1733171156698,0.00553843,96157.0,96152.0,0.208002]
[1733171156699,0.00325185,96154.0,96152.0,0.208002]
[1733171156950,0.0005867,96155.0,96150.0,0.0791]
[1733171158287,0.00553843,96144.0,96143.0,0.984]
[1733171158938,0.21355943,96144.0,96143.0,0.984]
[1733171159157,0.21355943,96144.0,96124.0,0.82268211]
[1733171159158,0.208058,96127.0,96124.0,0.5106]
[1733171159621,0.208058,96127.0,96124.0,0.461]
[1733171161392,0.217058,96127.0,96124.0,0.461]
[1733171161617,0.221058,96127.0,96124.0,0.461]
[1733171162943,0.429116,96127.0,96124.0,0.461]
[1733171163402,0.00553843,96123.0,96117.0,0.984]
[1733171163859,0.00553843,96119.0,96117.0,0.984]
[1733171164067,0.00553843,96118.0,96117.0,0.984]
[1733171164296,0.00737926,96118.0,96117.0,0.984]
[1733171164731,0.0079656,96118.0,96117.0,0.984]
[1733171165248,0.02494679,96118.0,96117.0,0.984]
[1733171165483,0.03294679,96118.0,96117.0,0.984]
[1733171165706,0.0159656,96118.0,96117.0,0.984]
[1733171165919,0.0249656,96118.0,96117.0,0.984]
[1733171167907,0.0258321,96118.0,96117.0,0.984]
[1733171169631,0.01845284,96118.0,96117.0,0.984]
[1733171172404,0.01845284,96118.0,96117.0,1.08684521]
[1733171173334,0.01045284,96118.0,96117.0,1.08684521]
[1733171173781,0.01545284,96118.0,96117.0,1.08684521]
[1733171174192,0.01045284,96118.0,96117.0,1.08684521]
[1733171174700,0.01645284,96118.0,96117.0,1.08684521]
[1733171174966,0.00745284,96118.0,96117.0,1.08684521]
[1733171175494,0.01645284,96118.0,96117.0,1.08684521]
[1733171175731,0.00745284,96118.0,96117.0,1.08684521]
[1733171176221,0.01645284,96118.0,96117.0,1.08684521]
[1733171176945,0.01045284,96118.0,96117.0,1.08684521]
[1733171177422,0.01545284,96118.0,96117.0,1.08684521]
[1733171177848,0.01045284,96118.0,96117.0,1.08684521]
[1733171178076,0.01645284,96118.0,96117.0,1.08684521]
[1733171180536,0.01645284,96118.0,96117.0,1.40880678]
[1733171180776,0.01645284,96118.0,96117.0,1.79098564]
[1733171181010,0.01744605,96156.0,96130.0,0.19446157]
[1733171181240,0.00017587,96158.0,96150.0,0.0796]
[1733171181493,0.00017587,96158.0,96151.0,0.10284521]
[1733171182226,0.002,96156.0,96152.0,0.208003]
[1733171182475,0.002,96156.0,96153.0,0.10284521]
[1733171182680,0.002,96156.0,96154.0,0.207999]
[1733171182915,0.002,96156.0,96155.0,0.10284521]
[1733171183558,0.009,96156.0,96155.0,0.10468579]
[1733171183786,0.00017587,96158.0,96156.0,0.207995]
[1733171184042,0.00017587,96158.0,96156.0,0.31084021]
[1733171184260,0.00017587,96158.0,96156.0,0.10284521]
[1733171184487,0.00717587,96158.0,96157.0,0.31083821]
[1733171184760,0.00717587,96158.0,96157.0,0.10284521]
[1733171185021,0.208008,96150.0,96135.0,0.0752]
[1733171185238,0.00553843,96152.0,96143.0,1.08684521]
[1733171185463,0.00817587,96158.0,96143.0,0.984]
[1733171185464,0.208017,96146.0,96143.0,0.984]
[1733171185696,0.416034,96146.0,96143.0,0.984]
[1733171185950,0.416034,96146.0,96130.0,1.8975]
[1733171185951,0.00553843,96139.0,96120.0,0.0478]
[1733171186163,0.208041,96135.0,96131.0,0.56434521]
[1733171186432,0.208041,96135.0,96131.0,0.56267133]
[1733171186925,0.208043,96134.0,96131.0,0.45982612]
[1733171187176,0.416086,96134.0,96131.0,0.45982612]
[1733171187925,0.00553843,96132.0,96131.0,0.45982612]
[1733171188533,0.00553843,96132.0,96119.0,0.9835]
[1733171188738,0.20806,96127.0,96119.0,1.08634521]
[1733171188943,0.00553843,96128.0,96119.0,1.08634521]
[1733171188944,0.208073,96120.0,96119.0,1.08634521]
[1733171189145,0.00553843,96128.0,96119.0,1.08634521]
[1733171189146,0.208069,96122.0,96119.0,1.08634521]
[1733171189992,0.208097,96109.0,96108.0,0.4595]
[1733171190221,0.208097,96109.0,96108.0,0.46008634]
[1733171190871,0.21363543,96109.0,96108.0,0.00058634]
[1733171191095,0.00184083,96110.0,96108.0,0.00058634]
[1733171191317,0.208095,96110.0,96108.0,0.00058634]
[1733171191527,0.00553843,96116.0,96108.0,0.00058634]
[1733171191528,0.004,96109.0,96108.0,0.00058634]
[1733171191758,0.004,96109.0,96108.0,0.10343155]
[1733171192885,0.013,96109.0,96108.0,0.10343155]
[1733171193320,0.009,96109.0,96108.0,0.10343155]
[1733171193529,0.208097,96109.0,96108.0,0.10343155]
[1733171194199,0.21363543,96109.0,96108.0,0.00058634]
[1733171194408,0.21963543,96109.0,96108.0,0.00058634]
[1733171194823,0.22863543,96109.0,96108.0,0.00058634]
[1733171195242,0.208107,96104.0,96103.0,0.00041547]
[1733171195443,0.208107,96104.0,96103.0,0.0004766]
[1733171197154,0.213107,96104.0,96103.0,0.0004766]
[1733171197779,0.00553843,96108.0,96103.0,0.0004766]
[1733171197983,0.015,96104.0,96103.0,0.0004766]
[1733171199234,0.024,96104.0,96103.0,0.0004766]
[1733171199439,0.006,96104.0,96103.0,0.0004766]
[1733171199857,0.009,96104.0,96103.0,0.0004766]
[1733171200057,0.015,96104.0,96103.0,0.0004766]
[1733171200732,0.01453843,96104.0,96103.0,0.0004766]
[1733171200932,0.214107,96104.0,96103.0,0.0004766]
[1733171201375,0.214107,96104.0,96100.0,0.0017306]
[1733171201376,0.55811,96103.0,96100.0,2e-07]
[1733171201532,0.358114,96101.0,96099.0,0.00088589]
[1733171201737,0.33139947,96100.0,96099.0,0.00088589]
[1733171201943,0.33929759,96100.0,96099.0,0.00088589]
[1733171203366,0.35655402,96100.0,96099.0,0.00088589]
[1733171203787,0.45938548,96100.0,96099.0,0.00088589]
[1733171203984,0.46038548,96100.0,96099.0,0.00088589]
[1733171204604,0.66038575,96100.0,96099.0,0.00088589]
[1733171204810,0.66038575,96100.0,96099.0,0.00988589]
[1733171204811,0.66138575,96100.0,96099.0,0.00988589]
[1733171205653,0.66138577,96100.0,96099.0,0.00988589]
[1733171206302,0.65813122,96100.0,96099.0,0.00988589]
[1733171207608,0.66138582,96100.0,96099.0,0.00988589]
[1733171210017,0.66138584,96100.0,96099.0,0.00988589]
[1733171210428,0.65813122,96100.0,96099.0,0.00988589]
[1733171211315,0.66138577,96100.0,96099.0,0.00988589]
[1733171211967,0.26233955,96100.0,96099.0,0.00988589]
[1733171213542,0.25444143,96100.0,96099.0,0.00988589]
[1733171214398,0.25769585,96100.0,96099.0,0.00988589]
[1733171216848,0.25769585,96100.0,96099.0,0.01161689]
[1733171217072,0.25856135,96100.0,96099.0,0.01161689]
[1733171219454,0.26376827,96100.0,96099.0,0.01161689]
[1733171220086,0.36659973,96100.0,96099.0,0.01161689]
[1733171220294,0.26376827,96100.0,96099.0,0.01161689]
[1733171220711,0.25856135,96100.0,96099.0,0.01161689]
[1733171222227,0.25530693,96100.0,96099.0,0.01161689]
[1733171222457,0.25856112,96100.0,96099.0,0.01161689]
[1733171223580,0.32522279,96100.0,96099.0,0.01161689]
[1733171223835,0.3304295,96100.0,96099.0,0.01161689]
[1733171224066,0.48258012,96100.0,96099.0,0.01161689]
[1733171224308,0.49057913,96100.0,96099.0,0.01161689]
[1733171224950,0.49708782,96100.0,96099.0,0.01161689]
[1733171226049,0.48537271,96100.0,96099.0,0.00916667]
[1733171226334,0.49188166,96100.0,96099.0,0.00916667]
[1733171226546,0.50034329,96100.0,96099.0,0.00916667]
[1733171228714,0.50034329,96100.0,96039.0,0.31136974]
[1733171228715,0.20818,96071.0,96058.0,0.208207]
[1733171228923,0.20818,96071.0,96058.0,0.31105221]
[1733171229350,0.20818,96071.0,96059.0,0.208205]
[1733171229563,0.208173,96074.0,96062.0,0.208197]
[1733171229769,0.208173,96074.0,96063.0,0.10284521]
[1733171231058,0.003,96071.0,96059.0,0.10284521]
[1733171231339,0.01769617,96074.0,96068.0,0.208183]
[1733171231535,0.009,96071.0,96068.0,0.416368]
[1733171231759,0.013,96071.0,96068.0,0.208183]
[1733171232392,0.009,96071.0,96068.0,0.416368]
[1733171232821,0.006,96074.0,96073.0,0.208175]
[1733171233024,0.006,96074.0,96073.0,0.36022021]
[1733171233448,0.006,96074.0,96073.0,0.31102021]
[1733171234170,0.01692805,96081.0,96073.0,0.208175]
[1733171234589,0.15,96087.0,96076.0,0.208166]
[1733171234809,0.21140019,96086.0,96076.0,0.208166]
[1733171234991,0.00325419,96085.0,96076.0,0.208166]
[1733171235227,0.00325419,96084.0,96076.0,0.208166]
[1733171235442,0.007,96081.0,96076.0,0.208166]
[1733171235658,0.007,96081.0,96077.0,0.41633]
[1733171235866,0.15,96088.0,96077.0,0.208164]
[1733171236082,0.001,96085.0,96080.0,0.208158]
[1733171236298,0.001,96085.0,96064.0,0.0492]
[1733171236299,0.00325419,96084.0,96078.0,0.208162]
[1733171236714,0.00325419,96083.0,96078.0,0.208162]
[1733171237195,0.00325419,96082.0,96078.0,0.208162]
[1733171237415,0.009,96081.0,96078.0,0.416325]
[1733171237657,0.15,96088.0,96078.0,0.208162]
[1733171237880,0.008,96081.0,96078.0,0.208162]
[1733171238373,0.15,96088.0,96081.0,0.208156]
[1733171238599,0.018,96082.0,96081.0,0.208156]
[1733171238802,0.009,96082.0,96079.0,0.208161]
[1733171239044,0.00325419,96081.0,96065.0,0.31241903]
[1733171239310,0.009,96081.0,96078.0,0.416327]
[1733171239742,0.009,96081.0,96078.0,0.418058]
[1733171239952,0.018,96081.0,96078.0,0.418058]
[1733171240175,0.018,96081.0,96080.0,0.284659]
[1733171240409,0.018,96081.0,96080.0,0.43370421]
[1733171240618,0.009,96081.0,96080.0,0.46597177]
[1733171241281,0.01726269,96091.0,96080.0,0.46597177]
[1733171241282,0.009,96082.0,96080.0,0.46597177]
[1733171241556,0.009,96082.0,96081.0,0.13511277]
[1733171241774,0.01726269,96091.0,96086.0,0.208146]
[1733171243079,0.01726269,96091.0,96086.0,0.2082133]
[1733171243532,0.01726269,96091.0,96086.0,6.73e-05]
[1733171243801,0.01726269,96091.0,96086.0,0.2082133]
[1733171244020,0.02626269,96091.0,96086.0,0.2082133]
[1733171245792,0.03426269,96091.0,96086.0,0.2082133]
[1733171246011,0.03426269,96091.0,96089.0,0.208138]
[1733171246263,0.017,96091.0,96090.0,0.10284521]
[1733171246493,0.017,96091.0,96090.0,0.2628894]
[1733171246945,0.017,96091.0,96090.0,0.7233894]
[1733171247418,0.008,96091.0,96090.0,0.7233894]
[1733171247628,0.0008655,96100.0,96096.0,0.208124]
[1733171247867,0.0008655,96100.0,96097.0,0.1350894]
[1733171248077,0.0008655,96100.0,96098.0,0.24036419]
[1733171248288,0.0008655,96100.0,96097.0,0.10284521]
[1733171249905,0.0098655,96100.0,96097.0,0.10284521]
[1733171250116,0.208118,96099.0,96090.0,0.4605]
[1733171250333,0.256518,96099.0,96086.0,6.73e-05]
[1733171250546,0.208128,96095.0,96087.0,0.10284521]
[1733171250747,0.256518,96099.0,96087.0,0.10284521]
[1733171251558,0.15,96097.0,96086.0,6.73e-05]
[1733171251869,0.20814,96089.0,96086.0,6.73e-05]
[1733171252285,0.416281,96089.0,96086.0,6.73e-05]
[1733171253515,0.208144,96087.0,96086.0,6.73e-05]
[1733171253746,0.358144,96087.0,96086.0,6.73e-05]
[1733171254687,0.5149865,96087.0,96086.0,6.73e-05]
[1733171254896,0.5239865,96087.0,96086.0,6.73e-05]
[1733171255764,0.445644,96087.0,96086.0,6.73e-05]
[1733171256599,0.452644,96087.0,96086.0,6.73e-05]
[1733171258575,0.501044,96087.0,96086.0,6.73e-05]
[1733171258997,0.50429849,96087.0,96086.0,6.73e-05]
[1733171259664,0.49729849,96087.0,96086.0,6.73e-05]
[1733171260091,0.59142906,96087.0,96086.0,6.73e-05]
[1733171260509,0.59042906,96087.0,96086.0,6.73e-05]
[1733171260733,0.58142906,96087.0,96086.0,6.73e-05]
[1733171260940,0.57917455,96087.0,96086.0,6.73e-05]
[1733171261154,0.486044,96087.0,96086.0,6.73e-05]
[1733171261420,0.487044,96087.0,96086.0,0.0020673]
[1733171261641,0.486044,96087.0,96086.0,6.73e-05]
[1733171262072,0.487044,96087.0,96086.0,0.0020673]
[1733171264833,0.2789,96087.0,96086.0,0.0020673]
[1733171265047,0.002,96087.0,96086.0,0.0020673]
[1733171266544,0.002,96087.0,96086.0,0.2102133]
[1733171268509,0.002,96087.0,96086.0,0.0020673]
[1733171269119,0.002,96087.0,96086.0,0.2102133]
[1733171269375,0.002,96087.0,96086.0,0.0020673]
[1733171270034,0.001,96087.0,96086.0,0.0020673]
[1733171270248,0.01772598,96089.0,96086.0,6.73e-05]
[1733171270472,0.009,96087.0,96086.0,6.73e-05]
[1733171270683,0.018,96087.0,96086.0,0.0010673]
[1733171272060,0.009,96087.0,96086.0,0.0010673]
[1733171272401,0.04747709,96087.0,96086.0,0.0010673]
[1733171272650,0.04747709,96087.0,96086.0,0.0020673]
[1733171272901,0.04747709,96087.0,96086.0,0.0010673]
[1733171273151,0.084,96087.0,96086.0,0.0010673]
[1733171273388,0.093,96087.0,96086.0,0.0020673]
[1733171273604,0.093,96087.0,96086.0,1.0020673]
[1733171276394,0.0947316,96087.0,96086.0,1.0020673]
[1733171281726,0.09798597,96087.0,96086.0,1.0020673]
[1733171282694,0.0947316,96087.0,96086.0,1.0020673]
[1733171282930,0.09798596,96087.0,96086.0,1.0020673]
[1733171284129,0.15858697,96087.0,96086.0,1.0020673]
[1733171284383,0.30858697,96087.0,96086.0,1.0020673]
[1733171285094,0.24713987,96087.0,96086.0,1.0020673]
[1733171285551,0.09713987,96087.0,96086.0,1.0020673]
[1733171287370,0.34998508,96087.0,96086.0,1.0020673]
[1733171287582,0.3676847,96087.0,96086.0,1.0020673]
[1733171287808,0.37289192,96087.0,96086.0,1.0020673]
[1733171288222,0.47572338,96087.0,96086.0,1.0020673]
[1733171288635,0.00020268,96088.0,96087.0,0.52427662]
[1733171289274,0.01736479,96088.0,96087.0,0.52427662]
[1733171289502,0.00020268,96088.0,96087.0,0.52427662]
[1733171289720,0.08757385,96088.0,96087.0,0.52427662]
[1733171290140,0.08757385,96088.0,96087.0,0.52527662]
[1733171290141,0.00920268,96088.0,96087.0,0.52527662]
[1733171290382,0.05470268,96088.0,96087.0,0.52527662]
[1733171291013,0.21370268,96088.0,96087.0,0.52627662]
[1733171291508,0.19570268,96088.0,96087.0,0.52427662]
[1733171291718,0.28040268,96088.0,96087.0,0.54227662]
[1733171291939,0.38323414,96088.0,96087.0,0.54227662]
[1733171292299,0.28040268,96088.0,96087.0,0.54227662]
[1733171292557,0.28056905,96088.0,96087.0,0.54227662]
[1733171293042,0.17753035,96090.0,96087.0,0.018]
[1733171293271,0.10284521,96089.0,96087.0,0.018]
[1733171293699,0.31098621,96089.0,96087.0,0.018]
[1733171293898,0.10283146,96088.0,96087.0,0.009]
[1733171294097,0.408144,96087.0,96086.0,1.0000673]
[1733171294301,0.71098921,96087.0,96086.0,1.0000673]
[1733171294944,0.86098921,96087.0,96086.0,1.0000673]
[1733171295973,0.98188921,96087.0,96086.0,1.0000673]
[1733171296383,0.66198921,96087.0,96086.0,1.0090673]
[1733171296605,0.66098921,96087.0,96086.0,1.0000673]
[1733171296807,0.66198921,96087.0,96086.0,1.0090673]
[1733171297015,0.210144,96087.0,96086.0,1.0180673]
[1733171297247,0.209144,96087.0,96086.0,1.0000673]
[1733171297714,0.210144,96087.0,96086.0,1.0090673]
[1733171297915,0.211144,96087.0,96086.0,1.0180673]
[1733171298496,0.360144,96087.0,96086.0,1.0090673]
[1733171299083,0.358144,96087.0,96086.0,1.0000673]
[1733171299453,0.359144,96087.0,96086.0,1.0090673]
[1733171299652,0.359144,96087.0,96086.0,1.0000673]
[1733171299904,0.359144,96087.0,96086.0,1.0180673]
[1733171299905,0.361144,96087.0,96086.0,1.0180673]
[1733171300099,0.3628756,96087.0,96086.0,1.0180673]
[1733171300276,0.3618756,96087.0,96086.0,1.0090673]
[1733171300697,0.36512988,96087.0,96086.0,1.0090673]
[1733171300921,0.36612988,96087.0,96086.0,1.0180673]
[1733171301307,0.21612988,96087.0,96086.0,1.0180673]
[1733171301476,0.0047316,96087.0,96086.0,1.0180673]
[1733171303430,0.0047316,96087.0,96086.0,1.0949673]
[1733171304213,0.0017316,96087.0,96086.0,1.0769673]
[1733171304618,0.0037316,96087.0,96086.0,1.3021133]
[1733171304823,0.0037316,96087.0,96086.0,1.0939673]
[1733171305002,0.0027316,96087.0,96086.0,1.0859673]
[1733171305404,0.0027316,96087.0,96086.0,1.23451251]
[1733171305630,0.0008655,96100.0,96086.0,1.23451251]
[1733171305631,0.00520658,96099.0,96098.0,0.33462]
[1733171305805,0.0008655,96100.0,96098.0,0.43746521]
[1733171306029,0.0008655,96100.0,96099.0,0.10284521]
[1733171306232,0.0008655,96100.0,96099.0,0.18821733]
[1733171307187,0.0058655,96100.0,96099.0,0.18921733]
[1733171307558,0.0028655,96100.0,96099.0,0.18921733]
[1733171307950,0.0058655,96100.0,96099.0,0.19021733]
[1733171308574,0.0058655,96100.0,96099.0,0.26961733]
[1733171309410,0.0038655,96100.0,96099.0,0.26861733]
[1733171309623,0.0038655,96100.0,96099.0,0.31291733]
[1733171309624,0.0008655,96100.0,96099.0,0.31291733]
[1733171309834,0.0008655,96100.0,96099.0,0.31391733]
[1733171310048,0.0008655,96100.0,96099.0,0.31291733]
[1733171310516,0.0008655,96100.0,96099.0,0.31391733]
[1733171310738,0.0008655,96100.0,96099.0,0.31291733]
[1733171310944,0.0008655,96100.0,96099.0,0.31391733]
[1733171312211,0.0008655,96100.0,96099.0,0.31291733]
[1733171312415,0.0018655,96100.0,96099.0,0.31391733]
[1733171312622,0.0008655,96100.0,96099.0,0.31291733]
[1733171313070,0.0008655,96100.0,96099.0,0.22854521]
[1733171313277,0.0008655,96100.0,96099.0,0.0804]
[1733171313480,0.0018655,96100.0,96099.0,0.0804]